bitfinex-derivatives/quotes_BTCF0:USTF0_20210705
["timestamp","ask_amount","ask_price","bid_price","bid_amount"]
[1625455626819,0.31362235,34415.0,34414.0,0.0045159]
[1625455626920,0.40042235,34415.0,34414.0,0.0045159]
[1625455627023,6.19485528,34415.0,34414.0,0.0045159]
[1625455627523,6.10805528,34415.0,34414.0,0.0045159]
[1625455628574,6.19635528,34415.0,34414.0,0.0045159]
[1625455629026,6.18230837,34415.0,34414.0,0.0045159]
[1625455629126,6.09400837,34415.0,34414.0,0.0045159]
[1625455630278,6.09400837,34415.0,34413.0,0.24057544]
[1625455630583,0.24057544,34414.0,34413.0,0.24057544]
[1625455630679,0.38567544,34414.0,34413.0,0.24057544]
[1625455630881,0.38567544,34414.0,34413.0,0.2450937]
[1625455631179,0.29957544,34414.0,34413.0,0.2450937]
[1625455631379,6.09359117,34414.0,34413.0,0.2450937]
[1625455632232,6.18019117,34414.0,34413.0,0.2450937]
[1625455632733,6.18019117,34414.0,34413.0,0.24057544]
[1625455632833,6.09359117,34414.0,34413.0,0.24057544]
[1625455633937,6.18179117,34414.0,34413.0,0.24057544]
[1625455636889,6.09359117,34414.0,34413.0,0.24057544]
[1625455637941,6.18109117,34414.0,34413.0,0.24057544]
[1625455638141,6.09359117,34414.0,34413.0,0.24057544]
[1625455638944,6.15259117,34414.0,34408.0,0.057]
[1625455639045,4.789,34409.0,34408.0,0.057]
[1625455639152,5.13184,34409.0,34407.0,0.84104704]
[1625455639645,10.92055619,34409.0,34407.0,0.49789093]
[1625455640096,10.92055619,34409.0,34407.0,0.41211894]
[1625455640097,1.36069113,34408.0,34407.0,0.41211894]
[1625455640196,5.84206487,34408.0,34407.0,0.24057544]
[1625455640849,6.32321575,34408.0,34407.0,0.24057544]
[1625455643206,6.32321575,34408.0,34407.0,0.29757544]
[1625455643409,6.32321575,34408.0,34407.0,0.24057544]
[1625455645213,6.41111575,34408.0,34407.0,0.24057544]
[1625455645612,6.32321575,34408.0,34407.0,0.24057544]
[1625455647263,10.25121575,34408.0,34407.0,0.24057544]
[1625455648364,10.31021575,34408.0,34402.0,0.08569062]
[1625455648666,10.31021575,34408.0,34403.0,0.0045228]
[1625455648967,0.24057544,34404.0,34403.0,0.0045228]
[1625455649067,0.29957544,34404.0,34403.0,0.0045228]
[1625455649219,0.29957544,34404.0,34402.0,0.00452282]
[1625455649518,6.05851453,34404.0,34402.0,0.00452282]
[1625455649870,4.2348473,34403.0,34402.0,0.00452282]
[1625455649970,4.2938473,34403.0,34402.0,0.00452282]
[1625455651526,5.81733557,34403.0,34402.0,0.00452282]
[1625455652479,5.81733557,34403.0,34401.0,0.24057544]
[1625455652678,5.81733557,34403.0,34402.0,0.00452309]
[1625455652878,0.059,34403.0,34402.0,0.00452309]
[1625455653532,4.29014136,34403.0,34402.0,0.00452309]
[1625455653834,4.29014136,34403.0,34402.0,0.06152309]
[1625455654034,4.29014136,34403.0,34402.0,0.00452309]
[1625455654636,4.29014136,34403.0,34402.0,0.06152309]
[1625455654786,4.29014136,34403.0,34402.0,0.00452309]
[1625455655087,4.29014136,34403.0,34401.0,0.24057544]
[1625455655943,4.29014136,34403.0,34402.0,0.057]
[1625455656039,0.059,34403.0,34402.0,0.057]
[1625455656139,0.059,34403.0,34402.0,0.06152104]
[1625455656692,4.29121104,34403.0,34402.0,0.00452104]
[1625455656792,4.29121104,34403.0,34402.0,0.06152104]
[1625455656894,4.29121104,34403.0,34402.0,0.00452104]
[1625455658048,4.29121104,34403.0,34401.0,0.24057544]
[1625455658598,4.2321301,34402.0,34401.0,0.24057544]
[1625455658699,4.5432301,34402.0,34401.0,0.24057544]
[1625455658899,4.5432301,34402.0,34401.0,0.24509658]
[1625455659000,4.78380554,34402.0,34401.0,0.24509658]
[1625455659901,4.78380554,34402.0,34401.0,0.30209658]
[1625455660905,3.4295713,34402.0,34401.0,0.30209658]
[1625455663463,3.4295713,34402.0,34401.0,0.24509658]
[1625455663964,0.55167544,34402.0,34401.0,0.24509658]
[1625455664166,0.55167544,34402.0,34401.0,0.30209658]
[1625455664265,0.55167544,34402.0,34401.0,0.24509658]
[1625455664366,3.42805957,34402.0,34401.0,0.24509658]
[1625455664769,4.78131847,34402.0,34401.0,0.24509658]
[1625455664867,4.78131847,34402.0,34401.0,0.30209658]
[1625455666120,3.42805957,34402.0,34401.0,0.30209658]
[1625455667730,4.78122884,34402.0,34401.0,0.30209658]
[1625455667831,0.55167544,34402.0,34401.0,0.30209658]
[1625455668030,0.29957544,34402.0,34401.0,0.30209658]
[1625455668732,4.52847753,34402.0,34401.0,0.30209658]
[1625455669236,3.17527622,34402.0,34401.0,0.30209658]
[1625455670091,3.17527622,34402.0,34401.0,4.53529658]
[1625455670190,2.49996705,34402.0,34401.0,4.53529658]
[1625455670791,2.49996705,34402.0,34401.0,0.30209658]
[1625455670990,0.80833856,34402.0,34401.0,0.30209658]
[1625455671343,2.50459204,34402.0,34401.0,0.55873418]
[1625455672797,1.48687387,34402.0,34401.0,1.15782915]
[1625455672995,0.50339254,34403.0,34401.0,1.15782915]
[1625455673094,0.50339254,34403.0,34401.0,1.21682915]
[1625455673395,0.50339254,34403.0,34402.0,0.00454007]
[1625455673496,0.50339254,34403.0,34402.0,0.06354007]
[1625455673746,1.18826021,34406.0,34402.0,0.06354007]
[1625455674198,1.18826021,34406.0,34403.0,0.00454229]
[1625455674295,1.18826021,34406.0,34403.0,0.06354229]
[1625455674497,1.18826021,34406.0,34404.0,0.25680322]
[1625455674596,1.18826021,34406.0,34405.0,0.057]
[1625455674946,1.18826021,34406.0,34405.0,0.06154237]
[1625455675149,1.18826021,34406.0,34405.0,0.30211781]
[1625455675750,1.18826021,34406.0,34405.0,0.38776518]
[1625455675949,1.18826021,34406.0,34405.0,4.42086518]
[1625455676399,1.18826021,34406.0,34405.0,0.38776518]
[1625455677050,2.54673144,34406.0,34405.0,0.30211781]
[1625455677504,2.54673144,34406.0,34405.0,0.38780539]
[1625455678757,2.54673144,34406.0,34405.0,0.30211781]
[1625455679209,2.54673144,34406.0,34405.0,0.90225734]
[1625455679610,2.54673144,34406.0,34405.0,0.30211781]
[1625455679959,2.60573144,34406.0,34405.0,0.30211781]
[1625455680110,2.60573144,34406.0,34405.0,0.24511781]
[1625455680714,4.13476424,34406.0,34405.0,0.24511781]
[1625455681412,4.1487333,34406.0,34405.0,0.24511781]
[1625455681512,4.2077333,34406.0,34405.0,0.24511781]
[1625455682729,5.99254336,34406.0,34405.0,0.00454237]
[1625455682915,5.99254336,34406.0,34401.0,0.24057544]
[1625455683166,0.24057544,34402.0,34401.0,0.24057544]
[1625455683270,0.35857544,34402.0,34401.0,0.24057544]
[1625455683517,0.37255826,34402.0,34401.0,0.24511376]
[1625455683618,4.44524252,34402.0,34401.0,0.24511376]
[1625455686169,4.44524252,34402.0,34401.0,0.28511376]
[1625455687975,4.53214252,34402.0,34401.0,0.28511376]
[1625455688073,4.53214252,34402.0,34401.0,0.28057544]
[1625455688275,4.53214252,34402.0,34401.0,0.04]
[1625455688380,4.53214252,34402.0,34395.0,0.25735944]
[1625455688475,5.03214252,34402.0,34395.0,0.25735944]
[1625455688774,5.03214252,34402.0,34395.0,0.25055944]
[1625455688875,0.01398246,34401.0,34396.0,0.00453941]
[1625455688976,0.40781246,34401.0,34396.0,0.00453941]
[1625455689074,2.10377328,34401.0,34396.0,0.00453941]
[1625455689175,0.48115088,34397.0,34396.0,0.00453941]
[1625455689279,0.54015088,34397.0,34396.0,0.00453941]
[1625455689375,0.59915088,34397.0,34394.0,0.00453974]
[1625455689576,1.95521286,34397.0,34394.0,0.00453974]
[1625455689675,4.66733682,34397.0,34394.0,0.00453974]
[1625455690229,4.06563939,34395.0,34392.0,0.0045776]
[1625455690325,4.18363939,34395.0,34392.0,0.0045776]
[1625455690427,4.18363939,34395.0,34390.0,0.08576716]
[1625455690727,4.18363939,34395.0,34391.0,0.00457797]
[1625455690826,4.06426414,34393.0,34391.0,0.00457797]
[1625455690929,4.45350414,34393.0,34390.0,0.06334513]
[1625455691128,4.8076,34391.0,34390.0,0.06334513]
[1625455691229,5.34775088,34391.0,34390.0,0.06334513]
[1625455691331,5.34775088,34391.0,34386.0,0.34309548]
[1625455691332,9.46663324,34391.0,34386.0,0.34309548]
[1625455691581,2.87133488,34387.0,34386.0,0.34309548]
[1625455691691,4.11267904,34387.0,34382.0,0.3429426]
[1625455691886,4.11267904,34387.0,34382.0,0.3999426]
[1625455692037,4.11267904,34387.0,34383.0,0.00458337]
[1625455692138,1.51933104,34386.0,34383.0,0.00458337]
[1625455692237,1.79974104,34386.0,34383.0,0.00458337]
[1625455692587,1.79974104,34386.0,34380.0,0.34296511]
[1625455692689,2.53215935,34384.0,34379.0,0.58354618]
[1625455692788,2.59115935,34384.0,34380.0,0.057]
[1625455693187,0.48115088,34381.0,34380.0,0.057]
[1625455693289,1.6627723,34381.0,34380.0,0.057]
[1625455693642,1.6627723,34381.0,34380.0,0.06158646]
[1625455694194,1.6627723,34381.0,34380.0,0.116]
[1625455694294,1.18162142,34381.0,34380.0,0.116]
[1625455694395,1.18162142,34381.0,34380.0,0.175]
[1625455694496,1.18162142,34381.0,34380.0,0.17958614]
[1625455694698,1.18181844,34384.0,34380.0,0.17958614]
[1625455694794,1.18181844,34384.0,34380.0,0.43907614]
[1625455695097,1.35062554,34386.0,34380.0,0.43907614]
[1625455695098,0.33753665,34382.0,34380.0,0.43907614]
[1625455695194,0.33753665,34382.0,34381.0,5.18871207]
[1625455695294,0.33753665,34382.0,34381.0,5.36371207]
[1625455695494,0.33770004,34383.0,34381.0,6.56311063]
[1625455695594,0.33770004,34383.0,34381.0,2.10071063]
[1625455695693,0.33770004,34383.0,34381.0,2.04171063]
[1625455695896,0.33763029,34384.0,34381.0,2.04171063]
[1625455695995,0.33763029,34384.0,34381.0,2.03712488]
[1625455696347,1.18044831,34386.0,34383.0,0.34260275]
[1625455696445,1.18044831,34386.0,34384.0,0.057]
[1625455696698,1.18044831,34386.0,34384.0,0.116]
[1625455696800,1.18044831,34386.0,34384.0,0.45860294]
[1625455697201,1.42102375,34386.0,34385.0,0.24057544]
[1625455697302,0.24057544,34386.0,34385.0,0.29757544]
[1625455697500,0.24057544,34386.0,34385.0,0.24057544]
[1625455697659,0.24057544,34386.0,34385.0,0.29757544]
[1625455697754,2.77042711,34386.0,34385.0,0.29757544]
[1625455698266,2.82942711,34386.0,34385.0,0.29757544]
[1625455699404,2.77042711,34386.0,34385.0,0.29757544]
[1625455699857,2.82942711,34386.0,34385.0,0.29757544]
[1625455700005,2.77042711,34386.0,34385.0,0.29757544]
[1625455700107,2.82942711,34386.0,34385.0,0.29757544]
[1625455700258,2.82942711,34386.0,34385.0,0.24057544]
[1625455700458,2.77042711,34386.0,34385.0,0.29757544]
[1625455701709,1.42118413,34386.0,34385.0,0.29757544]
[1625455703564,2.43253916,34386.0,34385.0,0.29757544]
[1625455704065,1.25193047,34386.0,34385.0,0.29757544]
[1625455704214,1.01135503,34386.0,34385.0,0.29757544]
[1625455704618,1.0123233,34387.0,34385.0,0.29757544]
[1625455705168,0.33762327,34386.0,34385.0,0.29757544]
[1625455705568,1.01253234,34388.0,34385.0,0.29757544]
[1625455706423,0.33782679,34386.0,34385.0,0.29757544]
[1625455707424,1.01253234,34388.0,34385.0,0.29757544]
[1625455707775,1.01305873,34387.0,34385.0,0.29757544]
[1625455709331,1.01305873,34387.0,34386.0,0.24057544]
[1625455709432,1.01305873,34387.0,34386.0,0.29757544]
[1625455710484,2.19379211,34387.0,34386.0,0.29757544]
[1625455710583,2.25279211,34387.0,34386.0,0.29757544]
[1625455711034,3.60150394,34387.0,34386.0,0.29757544]
[1625455711333,3.84207938,34387.0,34386.0,0.29757544]
[1625455713942,3.78307938,34387.0,34386.0,0.29757544]
[1625455714346,3.84207938,34387.0,34386.0,0.29757544]
[1625455714445,4.15424938,34387.0,34386.0,0.29757544]
[1625455715597,4.09524938,34387.0,34386.0,0.29757544]
[1625455715697,4.15424938,34387.0,34386.0,0.29757544]
[1625455715800,2.80553755,34387.0,34386.0,0.29757544]
[1625455716148,2.43436755,34387.0,34386.0,0.30207109]
[1625455718709,2.49336755,34387.0,34386.0,0.30207109]
[1625455719007,2.43436755,34387.0,34386.0,0.30207109]
[1625455719712,2.49336755,34387.0,34386.0,0.30207109]
[1625455719811,2.74050755,34387.0,34386.0,0.30207109]
[1625455719913,4.08868607,34387.0,34386.0,0.30207109]
[1625455720365,4.10280731,34387.0,34386.0,0.30207109]
[1625455722869,4.04380731,34387.0,34386.0,0.30207109]
[1625455723522,2.69562879,34387.0,34386.0,0.30207109]
[1625455723722,2.75462879,34387.0,34386.0,0.30207109]
[1625455723821,2.69562879,34387.0,34386.0,0.30207109]
[1625455725225,2.75462879,34387.0,34386.0,0.30207109]
[1625455728142,2.69562879,34387.0,34386.0,0.30207109]
[1625455728293,2.75462879,34387.0,34386.0,0.30207109]
[1625455728392,2.69562879,34387.0,34386.0,0.30207109]
[1625455729345,2.75462879,34387.0,34386.0,0.30207109]
[1625455729495,2.69562879,34387.0,34386.0,0.30207109]
[1625455729901,4.04804519,34387.0,34386.0,0.30207109]
[1625455730800,2.69562879,34387.0,34386.0,0.30207109]
[1625455731451,4.04875906,34387.0,34386.0,0.30207109]
[1625455732102,4.03463782,34387.0,34386.0,0.30207109]
[1625455732603,1.50077417,34387.0,34386.0,0.30207109]
[1625455732702,1.25363417,34387.0,34386.0,0.30207109]
[1625455733004,2.43909006,34387.0,34386.0,0.30207109]
[1625455733504,3.11660786,34387.0,34386.0,0.30207109]
[1625455737059,2.87603242,34387.0,34386.0,0.30207109]
[1625455737661,2.87603242,34387.0,34386.0,0.36107109]
[1625455738112,1.69057653,34387.0,34386.0,0.36107109]
[1625455738411,1.69057653,34387.0,34386.0,0.42007109]
[1625455738510,1.69057653,34387.0,34386.0,0.71328109]
[1625455738611,0.6775178,34387.0,34386.0,3.6288989]
[1625455738810,0.5127178,34387.0,34386.0,3.6288989]
[1625455739113,0.33975245,34388.0,34386.0,5.00088926]
[1625455739511,0.33975245,34388.0,34387.0,0.24057544]
[1625455739613,0.33975245,34388.0,34387.0,3.96225226]
[1625455739712,0.33975245,34388.0,34387.0,4.02125226]
[1625455740716,0.33975245,34388.0,34387.0,2.64937615]
[1625455741271,1.01923644,34390.0,34387.0,2.64937615]
[1625455741569,1.01923644,34390.0,34389.0,0.24057544]
[1625455741669,1.01923644,34390.0,34389.0,0.41557544]
[1625455741769,1.01923644,34390.0,34389.0,1.4445161]
[1625455741969,1.01923644,34390.0,34389.0,6.13251836]
[1625455742170,1.01923644,34390.0,34389.0,7.33359258]
[1625455744075,1.01923644,34390.0,34389.0,7.27459258]
[1625455744173,1.01923644,34390.0,34389.0,7.33359258]
[1625455744524,2.20896603,34390.0,34389.0,6.13251836]
[1625455744775,2.20896603,34390.0,34389.0,1.44901836]
[1625455745177,2.20896603,34390.0,34389.0,1.39001836]
[1625455747533,2.20896603,34390.0,34389.0,6.61661836]
[1625455749087,2.20896603,34390.0,34389.0,7.8183371]
[1625455751240,2.20896603,34390.0,34389.0,6.61661836]
[1625455753499,1.01923644,34390.0,34389.0,7.81807738]
[1625455757805,1.01923644,34390.0,34389.0,6.61661836]
[1625455759609,2.20544184,34390.0,34389.0,6.61661836]
[1625455760714,1.01923644,34390.0,34389.0,6.61661836]
[1625455761268,2.20510291,34390.0,34389.0,6.61661836]
[1625455763219,2.20510291,34390.0,34389.0,1.39001836]
[1625455763323,2.71336991,34390.0,34389.0,1.90473168]
[1625455770583,2.71336991,34390.0,34389.0,1.94473168]
[1625455771688,1.52750344,34390.0,34389.0,1.94473168]
[1625455772238,1.52750344,34390.0,34389.0,3.14565915]
[1625455774190,1.52750344,34390.0,34389.0,3.20465915]
[1625455774792,0.508267,34390.0,34389.0,3.20465915]
[1625455774893,0.508267,34390.0,34389.0,3.46941915]
[1625455779599,0.508267,34390.0,34389.0,4.84217258]
[1625455781455,0.508267,34390.0,34389.0,3.46941915]
[1625455782363,0.508267,34390.0,34389.0,4.84239555]
[1625455784592,0.508267,34390.0,34389.0,4.85320267]
[1625455784781,0.508267,34390.0,34389.0,5.36181191]
[1625455784967,0.33750481,34390.0,34389.0,5.36181191]
[1625455785568,0.84447054,34396.0,34389.0,6.90584319]
[1625455785769,0.84447054,34396.0,34395.0,0.72172632]
[1625455785867,0.84447054,34396.0,34395.0,0.89672632]
[1625455785968,0.84447054,34396.0,34395.0,0.90752657]
[1625455786067,0.84447054,34396.0,34395.0,1.41205636]
[1625455786173,1.01312829,34398.0,34395.0,7.07409814]
[1625455786174,0.338189,34398.0,34395.0,7.07409814]
[1625455786318,0.338189,34398.0,34396.0,0.01080044]
[1625455786418,0.338189,34398.0,34396.0,0.39949044]
[1625455786518,0.338189,34398.0,34397.0,0.557]
[1625455786618,0.84537068,34399.0,34397.0,4.8081637]
[1625455786719,0.84537068,34399.0,34398.0,0.01079153]
[1625455786819,0.84537068,34399.0,34398.0,0.06979153]
[1625455786919,0.84537068,34399.0,34398.0,0.62879153]
[1625455787021,0.34487068,34399.0,34398.0,0.68579153]
[1625455787123,0.33805484,34401.0,34398.0,4.80495821]
[1625455787374,0.33805484,34401.0,34399.0,0.01079294]
[1625455787470,0.33805484,34401.0,34399.0,0.07432216]
[1625455787570,0.33805484,34401.0,34400.0,0.5]
[1625455787674,0.33829311,34403.0,34400.0,4.23222328]
[1625455787771,0.33829311,34403.0,34402.0,0.72172632]
[1625455787872,0.33829311,34403.0,34402.0,0.83772632]
[1625455787972,0.33829311,34403.0,34402.0,0.89672632]
[1625455788222,0.33829311,34403.0,34402.0,0.90125549]
[1625455788322,0.33829311,34403.0,34402.0,4.50216399]
[1625455788772,0.33829311,34403.0,34402.0,4.57416399]
[1625455788871,0.33829311,34403.0,34402.0,4.61416399]
[1625455789073,0.33808721,34404.0,34402.0,4.61416399]
[1625455789472,0.33808721,34404.0,34402.0,4.57416399]
[1625455789573,0.33808721,34404.0,34403.0,0.0045285]
[1625455789675,1.01392371,34407.0,34403.0,0.0045285]
[1625455789676,0.33816201,34405.0,34403.0,3.92499311]
[1625455789774,0.33816201,34405.0,34404.0,0.29757544]
[1625455789874,0.33816201,34405.0,34404.0,0.41557544]
[1625455790073,0.33816201,34405.0,34404.0,0.46010388]
[1625455790175,0.33816201,34405.0,34404.0,2.68800251]
[1625455791327,1.52080108,34414.0,34404.0,2.68800251]
[1625455791328,0.33808913,34406.0,34404.0,2.68800251]
[1625455791629,0.33808913,34406.0,34405.0,0.00452846]
[1625455791729,0.33808913,34406.0,34405.0,0.06352846]
[1625455791829,0.33808913,34406.0,34405.0,0.12252846]
[1625455791930,0.33808913,34406.0,34405.0,1.20727873]
[1625455792579,0.33808913,34406.0,34405.0,1.24727873]
[1625455792830,0.33808913,34406.0,34405.0,2.44629762]
[1625455793332,0.33785285,34407.0,34405.0,1.24727873]
[1625455793784,1.01322088,34409.0,34406.0,1.27234664]
[1625455793884,1.01322088,34409.0,34407.0,0.057]
[1625455793984,1.01322088,34409.0,34407.0,0.116]
[1625455794085,1.01322088,34409.0,34407.0,0.175]
[1625455794234,1.01322088,34409.0,34408.0,0.34241366]
[1625455794335,1.01322088,34409.0,34408.0,0.45841366]
[1625455794434,1.01322088,34409.0,34408.0,0.51741366]
[1625455795338,1.18205757,34411.0,34408.0,0.51741366]
[1625455795339,1.01377476,34410.0,34408.0,0.51741366]
[1625455795439,1.01377476,34410.0,34408.0,0.55741366]
[1625455795837,1.01377476,34410.0,34409.0,0.48115088]
[1625455795939,1.01377476,34410.0,34409.0,0.59715088]
[1625455796038,1.18205757,34411.0,34409.0,0.59715088]
[1625455796139,1.18205757,34411.0,34410.0,4.3323]
[1625455796238,1.18205757,34411.0,34410.0,4.4483]
[1625455796387,1.18205757,34411.0,34410.0,4.4883]
[1625455796487,1.18205757,34411.0,34410.0,4.5473]
[1625455796640,2.19617542,34411.0,34410.0,4.5473]
[1625455797089,1.01411785,34411.0,34410.0,4.5473]
[1625455799143,1.6897008,34411.0,34410.0,4.5473]
[1625455799745,0.67558295,34411.0,34410.0,4.5473]
[1625455800898,0.67558295,34411.0,34410.0,0.215]
[1625455801197,0.67558295,34411.0,34410.0,0.156]
[1625455801296,1.01351295,34411.0,34410.0,0.097]
[1625455801397,1.07251295,34411.0,34410.0,0.04]
[1625455801798,4.61195038,34411.0,34410.0,0.04]
[1625455803851,4.91152582,34411.0,34410.0,0.04]
[1625455803951,6.42627689,34411.0,34410.0,0.04]
[1625455805002,8.10739473,34411.0,34410.0,0.04]
[1625455805101,8.10739473,34411.0,34409.0,0.48115088]
[1625455805455,4.4328,34410.0,34409.0,0.48115088]
[1625455805555,11.94796941,34410.0,34409.0,0.48115088]
[1625455806102,7.51516941,34410.0,34409.0,0.48115088]
[1625455806810,7.51516941,34410.0,34409.0,0.24057544]
[1625455806912,7.52915902,34410.0,34402.0,0.072]
[1625455807011,0.059,34409.0,34402.0,0.072]
[1625455807112,0.118,34409.0,34402.0,0.072]
[1625455807411,0.01399068,34408.0,34405.0,0.0001]
[1625455807513,0.07299068,34408.0,34405.0,0.0001]
[1625455807612,0.13199068,34408.0,34402.0,0.072]
[1625455807713,0.13199068,34408.0,34391.0,0.34212769]
[1625455807824,7.38833211,34406.0,34389.0,0.9574]
[1625455807914,0.24057544,34395.0,34394.0,0.24057544]
[1625455808014,0.63267544,34395.0,34394.0,0.24057544]
[1625455808215,5.75547544,34395.0,34394.0,0.24057544]
[1625455808424,9.95828414,34395.0,34394.0,0.24057544]
[1625455808867,9.95828414,34395.0,34391.0,0.24057544]
[1625455809068,10.01728414,34395.0,34391.0,0.24057544]
[1625455809419,4.20039688,34392.0,34391.0,0.24057544]
[1625455809518,4.31839688,34392.0,34391.0,0.24057544]
[1625455809868,4.55897232,34392.0,34391.0,0.24057544]
[1625455811071,3.55087035,34392.0,34391.0,0.24057544]
[1625455811420,4.5587143,34392.0,34391.0,0.24057544]
[1625455812622,4.5587143,34392.0,34387.0,0.24057544]
[1625455813177,1.67824335,34388.0,34387.0,0.24057544]
[1625455813276,2.07029335,34388.0,34387.0,0.24057544]
[1625455813926,2.31086879,34388.0,34387.0,0.24057544]
[1625455814079,3.3666496,34388.0,34387.0,0.24057544]
[1625455814179,3.3666496,34388.0,34387.0,0.29957544]
[1625455814778,3.3666496,34388.0,34387.0,0.24057544]
[1625455814878,3.4846496,34388.0,34387.0,0.24057544]
[1625455815227,2.31086879,34388.0,34387.0,0.24057544]
[1625455815731,3.4846152,34388.0,34387.0,0.24057544]
[1625455817495,3.4846152,34388.0,34381.0,0.34197895]
[1625455817586,0.63262544,34388.0,34380.0,0.24057544]
[1625455817884,5.2049,34381.0,34380.0,0.24057544]
[1625455817983,5.99008088,34381.0,34380.0,0.24057544]
[1625455818082,5.93108088,34381.0,34380.0,0.24057544]
[1625455818286,5.99008088,34381.0,34380.0,0.24057544]
[1625455818736,6.65932224,34381.0,34380.0,0.24057544]
[1625455820089,7.66265253,34381.0,34380.0,0.24057544]
[1625455820303,7.72165253,34381.0,34374.0,0.34177608]
[1625455820592,7.72165253,34381.0,34374.0,0.31337608]
[1625455820690,7.72165253,34381.0,34374.0,0.27007608]
[1625455820791,10.22461124,34381.0,34368.0,0.34183829]
[1625455821340,2.82612281,34369.0,34357.0,0.68373941]
[1625455821438,3.19023281,34369.0,34357.0,0.68373941]
[1625455821538,3.13123281,34369.0,34357.0,0.68373941]
[1625455821638,3.19023281,34369.0,34357.0,0.68373941]
[1625455821839,0.66380315,34366.0,34354.0,0.68283098]
[1625455821939,0.78180315,34366.0,34354.0,0.68283098]
[1625455822040,0.48115088,34355.0,34354.0,0.68283098]
[1625455822139,0.71980088,34355.0,34354.0,0.68283098]
[1625455822341,0.71980088,34355.0,34354.0,0.73983098]
[1625455822741,0.71980088,34355.0,34354.0,0.79883098]
[1625455822890,0.71980088,34355.0,34354.0,5.79133098]
[1625455822992,0.71980088,34355.0,34354.0,5.84833098]
[1625455823294,0.71980088,34355.0,34354.0,5.90733098]
[1625455823392,0.48115088,34355.0,34354.0,5.90733098]
[1625455823892,0.48115088,34355.0,34354.0,6.93019238]
[1625455823991,0.48115088,34355.0,34354.0,7.17076782]
[1625455824997,0.48115088,34355.0,34354.0,8.36380014]
[1625455825395,0.40965088,34355.0,34354.0,8.36380014]
[1625455825495,0.40965088,34355.0,34354.0,7.17076782]
[1625455826345,0.24057544,34366.0,34354.0,7.17076782]
[1625455826450,0.24057544,34366.0,34354.0,7.41775782]
[1625455826546,0.29957544,34366.0,34354.0,7.41775782]
[1625455826653,0.24057544,34366.0,34354.0,7.41775782]
[1625455826756,0.24057544,34366.0,34354.0,7.91775782]
[1625455826898,0.24057544,34366.0,34357.0,0.68108863]
[1625455826998,0.24057544,34366.0,34358.0,0.057]
[1625455827099,0.24057544,34366.0,34358.0,0.175]
[1625455827398,0.24057544,34366.0,34358.0,0.85578896]
[1625455828049,0.24057544,34366.0,34363.0,0.24057544]
[1625455828149,0.24057544,34366.0,34364.0,0.057]
[1625455828251,0.24057544,34366.0,34364.0,0.116]
[1625455832016,0.24057544,34366.0,34364.0,0.35657544]
[1625455832115,0.24057544,34366.0,34364.0,0.41557544]
[1625455833115,0.24057544,34366.0,34364.0,0.35657544]
[1625455837122,0.24057544,34366.0,34364.0,0.29957544]
[1625455837220,0.24057544,34366.0,34364.0,0.24057544]
[1625455838173,0.29957544,34366.0,34364.0,0.24057544]
[1625455838272,0.24057544,34366.0,34364.0,0.24057544]
[1625455838974,0.24057544,34366.0,34364.0,0.29957544]
[1625455839373,0.24057544,34366.0,34364.0,0.24057544]
[1625455839927,0.29957544,34366.0,34364.0,0.24057544]
[1625455840140,0.35857544,34366.0,34359.0,0.24057544]
[1625455840527,0.35857544,34366.0,34354.0,0.24057544]
[1625455840728,0.35857544,34366.0,34354.0,0.29957544]
[1625455840827,0.35857544,34366.0,34355.0,0.00453908]
[1625455841025,3.8967,34364.0,34355.0,0.06353908]
[1625455841126,4.0147,34364.0,34354.0,0.24057544]
[1625455841426,0.118,34364.0,34354.0,0.24057544]
[1625455841527,0.059,34364.0,34354.0,0.29957544]
[1625455841777,0.118,34364.0,34354.0,0.29957544]
[1625455841878,0.059,34364.0,34354.0,0.29957544]
[1625455841976,0.059,34364.0,34355.0,0.057]
[1625455842078,0.059,34364.0,34355.0,0.116]
[1625455842180,0.48115088,34356.0,34355.0,0.12053944]
[1625455842977,0.48115088,34356.0,34355.0,0.06153944]
[1625455843380,0.48115088,34356.0,34355.0,0.12053944]
[1625455843479,0.48115088,34356.0,34355.0,0.17953944]
[1625455844379,0.48115088,34356.0,34355.0,0.12253944]
[1625455844479,0.48115088,34356.0,34355.0,0.06353944]
[1625455845079,0.48115088,34356.0,34355.0,0.00453944]
[1625455846532,0.48115088,34356.0,34355.0,0.06153944]
[1625455847735,0.48115088,34356.0,34355.0,0.00453944]
[1625455848890,0.76436088,34356.0,34355.0,0.00453944]
[1625455849942,0.76436088,34356.0,34355.0,0.06153944]
[1625455850044,0.48115088,34356.0,34355.0,0.06153944]
[1625455850746,0.48115088,34356.0,34355.0,0.12053944]
[1625455852596,0.48115088,34356.0,34355.0,0.17953944]
[1625455852696,0.48115088,34356.0,34355.0,0.12053944]
[1625455853197,0.48115088,34356.0,34355.0,0.17953944]
[1625455853297,0.48115088,34356.0,34355.0,0.12053944]
[1625455853398,0.48115088,34356.0,34355.0,0.17953944]
[1625455853599,0.48115088,34356.0,34355.0,0.12053944]
[1625455854201,0.48115088,34356.0,34355.0,0.17953944]
[1625455858759,0.48115088,34356.0,34355.0,0.34970283]
[1625455859311,0.48115088,34356.0,34355.0,0.86120247]
[1625455861069,0.48115088,34356.0,34355.0,0.34997746]
[1625455861467,0.48115088,34356.0,34355.0,0.86129321]
[1625455861818,0.48115088,34356.0,34355.0,0.74329321]
[1625455861919,0.48115088,34356.0,34355.0,0.23197928]
[1625455862269,0.48115088,34356.0,34355.0,0.17497928]
[1625455862370,0.48115088,34356.0,34355.0,0.00453944]
[1625455862819,0.48115088,34356.0,34355.0,0.06153944]
[1625455864122,0.48115088,34356.0,34355.0,0.00453944]
[1625455865024,0.48115088,34356.0,34355.0,0.06153944]
[1625455865575,0.48115088,34356.0,34355.0,0.12053944]
[1625455865675,0.48115088,34356.0,34355.0,0.17953944]
[1625455865926,0.48115088,34356.0,34355.0,0.35036404]
[1625455866026,0.48115088,34356.0,34355.0,0.29136404]
[1625455866125,0.48115088,34356.0,34355.0,0.17536404]
[1625455866327,0.48115088,34356.0,34355.0,0.23236404]
[1625455866527,0.48115088,34356.0,34355.0,0.29136404]
[1625455866631,0.48115088,34356.0,34355.0,0.12053944]
[1625455866828,0.48115088,34356.0,34355.0,0.17953944]
[1625455867030,0.48115088,34356.0,34355.0,0.86282513]
[1625455867279,0.48115088,34356.0,34355.0,0.80382513]
[1625455867480,0.48115088,34356.0,34355.0,0.68782513]
[1625455867586,0.69973088,34356.0,34355.0,1.71366307]
[1625455867982,0.69973088,34356.0,34355.0,0.00453944]
[1625455869335,0.69973088,34356.0,34355.0,0.12053944]
[1625455869436,0.48115088,34356.0,34355.0,0.12053944]
[1625455869736,0.48115088,34356.0,34355.0,0.80486119]
[1625455870136,0.48115088,34356.0,34355.0,0.74786119]
[1625455870991,0.48115088,34356.0,34355.0,0.68886119]
[1625455871495,0.48115088,34356.0,34355.0,0.74786119]
[1625455871592,0.48115088,34356.0,34355.0,0.68886119]
[1625455871744,0.48115088,34356.0,34355.0,1.71593552]
[1625455872144,0.48115088,34356.0,34355.0,0.68886119]